Cogmind - Beta 15 @@@ ROGUE MODE // 2025.08.08 @ 00:13:22 Player: shapeshifter Result: Destroyed by G-50 Soldier with Heavy Laser Performance ------------- Evolutions (5) 2500 Regions Visited (14) 2800 Robots Destroyed (130) 650 Value Destroyed (4491) 4491 Prototype IDs (33) 660 Alien Tech Used (0) 0 Bonus (4096) 4096 TOTAL SCORE: 15197 Bonus ------- High Alert Combat Kills 953 Follower Combat Kills 2065 Aligned with FarCom 300 Built Enhanced Grunts 300 Met R17 at Cetus 500 Friendly Fire -22 Cogmind --------- Core Integrity 0/1000 Matter 14/300 Energy 69/100 System Corruption 3% Temperature Cool (9) Movement Core (2350) Ox46 Location -5/Factory Parts ------- > --- POWER (2) -------- (None) > --- PROPULSION (6) --- (None) > --- UTILITY (7) ------ Cargo Storage Unit Core Analyzer > --- WEAPON (2) ------- (None) > --- INVENTORY (30) --- Improved Heat Sink Improved Thermal Shield System Shield Enhanced Quantum Rifle Advanced KE Penetrator Rocket Array Improved Remote Datajack Peak State ------------ > --- POWER ------------ Reinforced Deuterium Engine Quantum Reactor > --- PROPULSION ------- Improved Medium Treads Improved Medium Treads Improved Medium Treads Centrium Heavy Treads Armored Leg > --- UTILITY ---------- Cargo Storage Unit Centrium Medium Armor Plating Centrium Medium Armor Plating Hacking Suite Experimental Hacking Suite Improved System Shield > --- WEAPON ----------- Advanced Variable Charge Gun Advanced KE Penetrator > --- INVENTORY -------- Light Nuclear Core Light Nuclear Core Improved Heat Sink Improved Heat Sink Coolant Injector Core Analyzer Powered Armor Powered Armor Improved Thermal Shield System Shield Improved Arc Projector Advanced Variable Charge Gun Enhanced Quantum Rifle Enhanced Quantum Rifle Flak Gun Advanced KE Penetrator Rocket Array Long-range Missile Launcher Smartbomb Launcher Smartbomb Launcher Improved Remote Datajack [Rating: 115] Favorites ----------- Power Reinforced Deuterium Engine Engine Reinforced Deuterium Engine Power Core Light Nuclear Core Reactor Quantum Reactor Propulsion Improved Titanium Leg Treads Light Treads Leg Improved Titanium Leg Wheel Compact Wheel Utility Hacking Suite Device Improved Shield Generator Storage High-capacity Storage Unit Processor Visual Processing Unit Hackware Hacking Suite Protection Centrium Medium Armor Plating Weapon Light Assault Rifle Energy Gun Arc Projector Energy Cannon Beam Cannon Ballistic Gun Light Assault Rifle Launcher Rocket Launcher Build | -11 -10 -10 -9 -9 -9 -8 -8 -7 -7 -7 -6 -6 -6 -5 ------- Run | Yrd Mat Min Mat Min Exi Min Mat Fac Was Fac Fac Ext Cet Fac Slots Evolved 10 | . . . 2 . . . 2 2 . . 2 . . 2 Power 1 | . . . . . . . . 1 . . . . . . Propulsion 4 | . . . 1 . . . 1 . . . 2 . . . Utility 5 | . . . 1 . . . 1 1 . . . . . 2 Weapon . | . . . . . . . . . . . . . . . Parts Attached 125 | 8 3 2 7 1 1 3 17 28 . 10 10 10 7 18 Power 18 | 2 1 1 2 . . . 2 2 . . 2 3 1 2 Engine 14 | 2 1 1 2 . . . 2 2 . . 2 2 . . Core 3 | . . . . . . . . . . . . 1 . 2 Reactor 1 | . . . . . . . . . . . . . 1 . Propulsion 32 | 2 . . 2 . . 2 7 4 . 4 4 1 1 5 Treads 13 | 2 . . 2 . . . 2 1 . . 2 1 1 2 Leg 13 | . . . . . . . 4 1 . 4 2 . . 2 Wheel 6 | . . . . . . 2 1 2 . . . . . 1 Hover . | . . . . . . . . . . . . . . . Flight . | . . . . . . . . . . . . . . . Utility 41 | 2 1 . 1 1 1 1 4 12 . 5 2 3 2 6 Device 14 | 1 . . . . . . 1 5 . 2 1 2 . 2 Storage 5 | 1 1 . . 1 1 . . . . . . . 1 . Processor 2 | . . . . . . . 1 . . . . . . 1 Hackware 5 | . . . . . . . . 3 . 1 1 . . . Protection 15 | . . . 1 . . 1 2 4 . 2 . 1 1 3 Artifact . | . . . . . . . . . . . . . . . Weapon 34 | 2 1 1 2 . . . 4 10 . 1 2 3 3 5 Energy Gun 17 | 1 . . . . . . 2 6 . . 2 2 2 2 Energy Cannon 1 | . . . . . . . 1 . . . . . . . Ballistic Gun 9 | 1 1 1 2 . . . . 2 . . . 1 1 . Ballistic Cannon . | . . . . . . . . . . . . . . . Launcher 7 | . . . . . . . 1 2 . 1 . . . 3 Special Weapon . | . . . . . . . . . . . . . . . Impact Weapon . | . . . . . . . . . . . . . . . Slashing Weapon . | . . . . . . . . . . . . . . . Piercing Weapon . | . . . . . . . . . . . . . . . Special Melee Weapon . | . . . . . . . . . . . . . . . Unidentified Prototypes 8 | . . . . . . . . . . 2 1 1 4 . Corrupted Parts 3 | . . . . . . . . . . . . . 3 . System Corruption 13 | . . . . . . . . . . . . . 13 . Parts Lost 68 | . . . 4 . . 2 6 12 4 . 4 2 3 31 Power 8 | . . . 1 . . . . . 1 . . 1 1 4 Propulsion 18 | . . . 1 . . 1 3 2 1 . . . 2 8 Utility 22 | . . . 1 . . 1 1 6 . . 2 1 . 10 Weapon 20 | . . . 1 . . . 2 4 2 . 2 . . 9 Highest Loss Streak 13 | . . . 3 . . 2 4 4 4 . 3 1 3 13 To Critical Strikes 3 | . . . . . . . . . 1 . . . 1 1 Average Backups 10 | 3 5 8 8 8 9 10 13 17 12 3 3 3 5 15 Power 1 | . . . . 1 1 1 2 2 1 . . . . 1 Propulsion 1 | 1 2 2 2 2 2 1 . 3 2 . . . . 1 Utility 4 | . 1 2 3 3 3 4 6 6 5 3 2 1 1 5 Weapon 3 | 1 1 3 2 1 2 2 2 4 2 . 1 1 3 7 Tool/Special . | . . . . . . . . . . . . . . . Unused Backups 34 | . 1 2 . . 1 . 5 4 10 1 . 1 1 8 Power 5 | . . . . . 1 . 2 . 2 . . . . . Propulsion 6 | . . . . . . . . 2 2 . . . . 2 Utility 11 | . . . . . . . 3 . 3 1 . . 1 3 Weapon 8 | . . 2 . . . . . 2 2 . . . . 2 Tool/Special 4 | . 1 . . . . . . . 1 . . 1 . 1 Average Slot Usage (%) 88 | . 100 100 78 88 88 87 85 94 60 63 83 99 93 76 Engine 9 | . 14 14 7 11 11 11 9 15 8 . 3 9 6 4 Treads 12 | . 28 28 24 33 33 20 8 . . . 4 17 19 15 Leg 14 | . . . . . . . 15 21 . 24 32 22 16 7 Wheel 2 | . . . . . . 12 9 3 13 1 . . . . Device 8 | . 14 14 11 11 11 4 5 13 11 10 5 6 4 . Storage 6 | . 14 14 11 11 11 11 9 7 4 . . . 1 5 Processor 1 | . . . . . . . 7 2 . . . . . . Hackware 7 | . . . . . . . . 5 12 14 13 20 20 15 Protection 6 | . . . 3 . . 6 6 8 . 9 11 5 4 9 Energy Gun 5 | . 7 . . . . . 5 8 . . 10 10 6 4 Ballistic Gun 8 | . 21 28 21 22 22 22 6 4 8 . . 1 6 4 Peak Build Rating 115 | 7 8 8 11 11 11 16 41 59 52 42 57 67 91 115 Average Rating 44 | 5 7 7 8 10 10 13 26 51 37 35 50 63 75 95 On Entrance 28 | . 7 8 8 10 10 11 16 39 51 16 37 57 66 87 Naked Turns . | . . . . . . . . . . . . . . . Heaviest Build 203 | 12 19 19 23 28 48 62 64 103 82 14 29 40 186 203 Greatest Support 170 | 40 40 40 63 63 63 63 80 80 56 80 40 56 132 170 Greatest Overweight (x) 61 | . . . . . . 1 18 3 1 2 1 1 1 61 Average Overweight (x) . | . . . . . . . . 1 . . . . . 1 Largest Inventory Capacity 30 | 8 10 10 10 15 20 20 20 20 20 5 5 5 30 30 Average Capacity 15 | 7 9 10 10 11 18 20 20 20 13 5 5 5 12 30 Most Carried 24 | 7 10 10 10 10 11 14 20 20 19 5 5 5 10 24 Average Carried 11 | 3 5 9 9 9 10 12 14 18 12 4 4 4 6 16 Final Capacity 30 | 8 10 10 10 15 20 20 20 20 5 5 5 5 30 30 Final Carried 19 | 3 10 10 9 10 11 11 19 18 5 5 4 5 9 11 Class Distribution -------------------- 37% | Mutant 32% | Hacker-Mutant 27% | Scavenger-Mutant Dominant Class ---------------- Mutant | -10/Materials Mutant | -10/Mines Mutant | -9/Materials Scavenger-Mutant | -9/Mines Scavenger-Mutant | -9/Exiles Mutant | -8/Mines Scavenger-Mutant | -8/Materials Mutant | -7/Factory Hacker-Mutant | -7/Waste Hacker-Mutant | -7/Factory Hacker-Mutant | -6/Factory Hacker-Mutant | -6/Extension Hacker-Mutant | -6/Cetus Scavenger-Mutant | -5/Factory Resources | -11 -10 -10 -9 -9 -9 -8 -8 -7 -7 -7 -6 -6 -6 -5 ----------- Run | Yrd Mat Min Mat Min Exi Min Mat Fac Was Fac Fac Ext Cet Fac Matter Collected 2952 | 251 329 56 115 10 . 10 291 866 200 . 59 400 122 243 Remotely . | . . . . . . . . . . . . . . . Salvage Created 3973 | 67 235 105 242 . . . 604 1597 . . 50 181 33 859 Parts 240 | 9 15 13 19 . . . 36 85 . . 1 6 . 56 Haulers Intercepted 4 | . . . . . . . 2 2 . . . . . . Recyclers Shooed 8 | . 1 . . . . . . . . . . 1 . 6 Parts Field Recycled . | . . . . . . . . . . . . . . . Retrieved Matter . | . . . . . . . . . . . . . . . Parts Self-Destructed . | . . . . . . . . . . . . . . . Prevented . | . . . . . . . . . . . . . . . Kills | -11 -10 -10 -9 -9 -9 -8 -8 -7 -7 -7 -6 -6 -6 -5 ------- Run | Yrd Mat Min Mat Min Exi Min Mat Fac Was Fac Fac Ext Cet Fac Combat Hostiles Destroyed 86 | . 4 6 5 . . . 8 37 . . 1 4 1 20 Guns 42 | . 4 6 5 . . . 5 14 . . 1 2 1 4 Cannons 1 | . . . . . . . . 1 . . . . . . AOE 40 | . . . . . . . 3 22 . . . . . 15 Classes Destroyed 16 | 1 3 1 2 . . . 1 6 . . . 1 . 1 Worker 8 | . . . . . . . . 4 . . . . . 4 Builder 11 | . . . . . . . . 1 . . . 1 . 9 Tunneler 4 | 3 . . . . . . . 1 . . . . . . Hauler 4 | . . . . . . . 2 2 . . . . . . Recycler 4 | . . . . . . . . 1 . . . . . 3 Mechanic 1 | . . . . . . . . . . . . . . 1 Operator 4 | . 1 . 1 . . . 2 . . . . . . . Watcher 8 | . 1 . . . . . 4 2 . . . 1 . . Swarmer 32 | . . 6 1 . . . . 10 . . . 2 . 13 Grunt 27 | . 4 . 1 . . . 5 15 . . . 1 . 1 Brawler 4 | . . . . . . . . 3 . . . . . 1 Duelist 4 | . . . 1 . . . 1 2 . . . . . . Sentry 6 | . . . 2 . . . 2 1 . . . . . 1 Hunter 5 | . . . . . . . . 3 . . . . . 2 Programmer 6 | . . . . . . . . 3 . . 1 . . 2 Behemoth 1 | . . . . . . . . . . . . 1 . . Cetus Guard 1 | . . . . . . . . . . . . . 1 . Best Kill Streak 22 | 1 2 3 2 . . . 4 8 . . 1 3 1 22 Combat Bots Only 8 | . 2 3 2 . . . 3 8 . . 1 2 1 7 Max Kills in Single Turn 8 | 1 1 1 1 . . . 3 7 . . 1 1 1 8 Gunslinging 1 | . . . . . . . . 1 . . . . . . Exploded 7 | . . . . . . . 3 3 . . . . . 7 Melee . | . . . . . . . . . . . . . . . Uniques/NPCs Destroyed . | . . . . . . . . . . . . . . . Combat | -11 -10 -10 -9 -9 -9 -8 -8 -7 -7 -7 -6 -6 -6 -5 -------- Run | Yrd Mat Min Mat Min Exi Min Mat Fac Was Fac Fac Ext Cet Fac Hostile Shots Fired 1237 | . 34 13 42 . . 34 61 371 14 . 43 178 37 410 Missed 370 | . 12 3 8 . . 12 16 102 . . 13 72 17 115 Hits 867 | . 22 10 34 . . 22 45 269 14 . 30 106 20 295 Melee 29 | . . . 5 . . . . 8 14 . . . . 2 Projectile 838 | . 22 10 29 . . 22 45 261 . . 30 106 20 293 AOE 5 | . . . . . . 1 . . . . 1 . . 3 Critical Strikes 52 | . 1 . 3 . . 2 3 11 5 . 5 3 2 17 Damage Taken 14462 | 34 274 82 547 . . 415 725 3650 637 . 781 860 386 6071 Core 2048 | . 39 . 117 . . 14 153 365 189 . 52 100 15 1004 Absorbed by Shields 920 | . . . . . . . . 550 . . 52 187 131 . Ignored by Resistances 90 | . . . . . . . . . . . . 55 35 . Core Remaining (%) 70 | 100 . 84 . . . 67 72 . . 20 . . 80 . Volleys Fired 420 | 23 23 9 35 . . 4 61 120 . . 10 46 16 73 Largest 2 | 2 2 2 2 . . 2 2 2 . . 2 2 2 2 Hottest 240 | 60 60 40 40 . . 40 100 110 . . 110 110 240 240 Shots Fired 709 | 46 46 18 65 . . 8 108 206 . . 20 70 30 92 Gun 645 | 46 46 18 65 . . 8 94 176 . . 20 70 30 72 Cannon 24 | . . . . . . . 11 13 . . . . . . Launcher 40 | . . . . . . . 3 17 . . . . . 20 Special . | . . . . . . . . . . . . . . . Kinetic 321 | 23 31 18 65 . . 8 70 70 . . . 1 13 22 Thermal 180 | . . . . . . . 24 13 . . 14 69 17 43 Explosive 40 | . . . . . . . 3 17 . . . . . 20 Electromagnetic 168 | 23 15 . . . . . 11 106 . . 6 . . 7 Robot Hit Streak 15 | 7 8 6 10 . . 2 15 9 . . 3 10 7 13 Robot Miss Streak 8 | 3 8 3 4 . . 2 8 8 . . 3 5 6 4 Penetration Max 1 | . . . . . . . . 1 . . . . . 1 Secondary Targets 6 | . 2 1 . . . . . 2 . . . . 1 . Max Gunslinging Chain 1 | . 1 1 . . . . . 1 . . . . 1 . Shots Hit Robots 453 | 30 25 11 46 . . 4 72 109 . . 10 60 26 60 Core Hits 306 | 6 11 7 18 . . 1 35 93 . . 4 36 27 68 Critical Kills 4 | . 1 . . . . . 1 1 . . . . . 1 Critical Parts Destroyed 5 | . 1 . . . . . . 1 . . . . . 3 Critical Strikes 10 | 1 2 . . . . . 1 2 . . . . . 4 Destroy 9 | . 2 . . . . . 1 2 . . . . . 4 Corrupt 1 | 1 . . . . . . . . . . . . . . Melee Attacks . | . . . . . . . . . . . . . . . Impact . | . . . . . . . . . . . . . . . Slashing . | . . . . . . . . . . . . . . . Piercing . | . . . . . . . . . . . . . . . Sneak Attacks . | . . . . . . . . . . . . . . . Combat Hostiles . | . . . . . . . . . . . . . . . Follow-up Attacks . | . . . . . . . . . . . . . . . Damage Inflicted 13846 | 365 330 112 400 . . 36 1168 4865 . . 129 1179 700 4562 Guns 6686 | 322 291 112 400 . . 36 671 1438 . . 95 1179 700 1442 Cannons 262 | . . . . . . . 141 121 . . . . . . Explosions 6860 | 43 39 . . . . . 356 3306 . . . . . 3116 Melee . | . . . . . . . . . . . . . . . Ramming 38 | . . . . . . . . . . . 34 . . 4 Kinetic 2767 | 121 151 112 400 . . 36 362 746 . . . 10 280 549 Thermal 3791 | 43 39 . . . . . 314 857 . . 90 1169 420 859 Explosive 6042 | . . . . . . . 356 2570 . . . . . 3116 Electromagnetic 1208 | 201 140 . . . . . 136 692 . . 5 . . 34 Impact . | . . . . . . . . . . . . . . . Slashing . | . . . . . . . . . . . . . . . Piercing . | . . . . . . . . . . . . . . . Highest Corruption 23 | . . . . . . . . 13 23 23 5 5 18 3 Average Corruption 9 | . . . . . . . . 11 21 23 3 5 7 2 Corruption Purged . | . . . . . . . . . . . . . . . Corruption Blocked . | . . . . . . . . . . . . . . . Effects 136 | . . . . . . . . 57 6 18 11 30 10 4 Message Errors 35 | . . . . . . . . 16 1 6 1 9 2 . Matter Fused 30 | . . . . . . . . 12 2 5 3 5 3 . Heat Flow Errors 10 | . . . . . . . . 3 . 1 1 4 1 . Energy Discharges 20 | . . . . . . . . 9 1 2 1 6 1 . Parts Rejected 3 | . . . . . . . . 1 . . . 1 . 1 Parts Fused 1 | . . . . . . . . 1 . . . . . . Data Loss (minor) 18 | . . . . . . . . 6 1 3 1 4 1 2 Data Loss (major) 5 | . . . . . . . . 1 . . 3 . 1 . Misfires 6 | . . . . . . . . 4 . . . 1 1 . Alerts 2 | . . . . . . . . . . 1 1 . . . Misdirections 2 | . . . . . . . . 1 1 . . . . . Weapon Failures 4 | . . . . . . . . 3 . . . . . 1 Overload Shots 4 | . . . . . . . . . . . . . 3 1 Overflow Damage 412 | 37 9 . . . . . 52 178 . . . . . 136 Projectiles . | . . . . . . . . . . . . . . . Explosions 412 | 37 9 . . . . . 52 178 . . . . . 136 Melee . | . . . . . . . . . . . . . . . Knockbacks . | . . . . . . . . . . . . . . . Impact . | . . . . . . . . . . . . . . . Kinetic . | . . . . . . . . . . . . . . . Secondary . | . . . . . . . . . . . . . . . Self-Inflicted Damage 477 | 34 . . . . . . . 275 . . . . . 168 Shots 13 | 1 . . . . . . . 8 . . . . . 4 Rammed . | . . . . . . . . . . . . . . . Targets Rammed 16 | . . . . . . . . . . . 15 . . 1 Kicked 15 | . . . . . . . . . . . 15 . . . Crushed 1 | . . . . . . . . . . . . . . 1 Highest Temperature 425 | 40 224 . 24 . . 45 153 321 . 81 408 251 274 425 Average Temperature 95 | 17 96 . 7 . . 23 47 104 . 52 107 86 136 109 Received Heat Transfer 3409 | . 174 . 168 . . 246 378 894 . . . 264 69 1216 Effects 9 | . 1 . . . . . . 3 . . . 1 . 4 Shutdowns 2 | . . . . . . . . . . . . . . 2 Energy Bleed 1 | . 1 . . . . . . . . . . . . . Interference 6 | . . . . . . . . 3 . . . 1 . 2 Siege Activations . | . . . . . . . . . . . . . . . Martial Activations . | . . . . . . . . . . . . . . . Shielding Activations . | . . . . . . . . . . . . . . . Robots Disrupted 1 | . . . . . . . . 1 . . . . . . Combat Hostiles 1 | . . . . . . . . 1 . . . . . . Robots Corrupted . | . . . . . . . . . . . . . . . Combat Hostiles . | . . . . . . . . . . . . . . . Parts Fried 2 | 1 . . . . . . . 1 . . . . . . Impact Corruptions . | . . . . . . . . . . . . . . . Robots Melted 3 | . . . . . . . . . . . . 2 . 1 Combat Hostiles 3 | . . . . . . . . . . . . 2 . 1 Parts Melted 14 | . . . . . . . 3 2 . . 2 5 . 2 Heat Transferred 6326 | 50 50 . . . . . 666 759 . . 296 3025 640 840 Parts Sabotaged . | . . . . . . . . . . . . . . . Parts Stolen . | . . . . . . . . . . . . . . . Parts Stripped . | . . . . . . . . . . . . . . . Power Chain Reactions 5 | 1 1 . . . . . . 3 . . . . . . Alert | -11 -10 -10 -9 -9 -9 -8 -8 -7 -7 -7 -6 -6 -6 -5 ------- Run | Yrd Mat Min Mat Min Exi Min Mat Fac Was Fac Fac Ext Cet Fac Maximum Alert Level 4 | . . . . . . . . 3 1 . . 1 1 4 Low Security (%) 68 | 100 100 100 100 100 . 100 100 19 . 100 100 77 57 38 Level 1 8 | . . . . . . . . 1 100 . . 22 42 26 Level 2 11 | . . . . . . . . 47 . . . . . 4 Level 3 8 | . . . . . . . . 31 . . . . . 6 Level 4 3 | . . . . . . . . . . . . . . 23 Level 5 . | . . . . . . . . . . . . . . . High Security . | . . . . . . . . . . . . . . . Max Security . | . . . . . . . . . . . . . . . Peak Influence 1510 | 5 107 70 50 . . 45 93 913 318 159 78 235 257 1510 Initial 318 | . 3 . 19 . . . . . 318 159 . 25 80 109 Average 218 | . 42 31 17 . . 4 22 496 278 71 7 112 184 518 Influence Increases 5746 | 15 236 140 187 . . 45 326 1521 . . 110 700 287 2179 Destroy 0b10 Robot/C 2620 | . 80 120 100 . . . 160 740 . . 20 400 160 840 Destroy 0b10 Robot/NC 260 | 15 10 . 5 . . . 40 55 . . . 15 10 110 Destroy Leader 482 | . 22 20 30 . . . 52 158 . . 10 54 . 136 Allied During Kill 752 | . . . . . . . . . . . . 176 104 472 Successful Hack 148 | . 12 . 7 . . . 8 10 . . 20 45 . 46 Disable Machine 630 | . 75 . . . . . 15 300 . . . . . 240 Anti-Garrison Action 150 | . . . . . . . . 150 . . . . . . Destroy Structure 479 | . 22 . . . . . 6 108 . . . 10 13 320 Lose Combat Pursuer 225 | . 15 . 45 . . 45 45 . . . 60 . . 15 Influence Decreases 4359 | 10 241 90 237 . . 45 326 610 683 228 56 611 233 989 Entered New Map 875 | . 2 . 31 . . . . . 593 69 . 29 63 88 Time Decay 2554 | 10 239 90 176 . . 45 266 490 50 159 56 382 140 451 Lost Part 610 | . . . 30 . . . 60 120 40 . . 20 30 310 Lost Ally 320 | . . . . . . . . . . . . 180 . 140 Squads Dispatched 27 | . 1 . 1 . . . . 13 . . 2 2 . 8 Investigation 4 | . . . . . . . . 3 . . . . . 1 Extermination 7 | . . . . . . . . 3 . . 1 . . 3 Reinforcement 12 | . 1 . 1 . . . . 4 . . 1 2 . 3 Assault 3 | . . . . . . . . 2 . . . . . 1 Garrison 1 | . . . . . . . . 1 . . . . . . Intercept . | . . . . . . . . . . . . . . . Searches Triggered . | . . . . . . . . . . . . . . . Construction Impeded 3 | . . . . . . . . 1 . . . 1 . 1 Haulers Reinforced 1 | . . . . . . . . . . . . . . 1 Active Scanning Responses . | . . . . . . . . . . . . . . . Cargo Convoy Interrupts . | . . . . . . . . . . . . . . . Stealth | -11 -10 -10 -9 -9 -9 -8 -8 -7 -7 -7 -6 -6 -6 -5 --------- Run | Yrd Mat Min Mat Min Exi Min Mat Fac Was Fac Fac Ext Cet Fac Distress Signals 11 | . 1 . 3 . . . 1 . . . 1 1 2 2 Communications Jammed . | . . . . . . . . . . . . . . . Distress Signals . | . . . . . . . . . . . . . . . Times Spotted 197 | . 12 5 12 . . 3 18 48 6 1 3 25 10 54 Peak Tracking Total 13 | . 3 3 4 . . 3 4 8 6 1 5 6 5 13 Tactical Retreats 9 | . 1 . 3 . . 1 1 1 . . 1 . . 1 Traps | -11 -10 -10 -9 -9 -9 -8 -8 -7 -7 -7 -6 -6 -6 -5 ------- Run | Yrd Mat Min Mat Min Exi Min Mat Fac Was Fac Fac Ext Cet Fac Traps Triggered 8 | . . . . . . . . 3 . . 3 2 . . Indirectly . | . . . . . . . . . . . . . . . Trap Hack Attempts . | . . . . . . . . . . . . . . . Triggered . | . . . . . . . . . . . . . . . Disarmed . | . . . . . . . . . . . . . . . Reprogrammed . | . . . . . . . . . . . . . . . Reused . | . . . . . . . . . . . . . . . Traps Extracted . | . . . . . . . . . . . . . . . Installed . | . . . . . . . . . . . . . . . Triggered . | . . . . . . . . . . . . . . . Objects Rigged 5 | . . . . . . . . 5 . . . . . . Exploded 3 | . . . . . . . . 3 . . . . . . Machines | -11 -10 -10 -9 -9 -9 -8 -8 -7 -7 -7 -6 -6 -6 -5 ---------- Run | Yrd Mat Min Mat Min Exi Min Mat Fac Was Fac Fac Ext Cet Fac Machines Disabled 43 | . 5 . . . . . 1 21 . . . . . 16 Max in Single Turn 8 | . 5 . . . . . 1 8 . . . . . 5 Garrison Access 3 | . . . . . . . . 2 . . 1 . . . Machines Repaired . | . . . . . . . . . . . . . . . Machines Dismantled . | . . . . . . . . . . . . . . . Machines Sabotaged . | . . . . . . . . . . . . . . . Overloaded Fab Kills . | . . . . . . . . . . . . . . . Hacking | -11 -10 -10 -9 -9 -9 -8 -8 -7 -7 -7 -6 -6 -6 -5 --------- Run | Yrd Mat Min Mat Min Exi Min Mat Fac Was Fac Fac Ext Cet Fac Machines Accessed 51 | . 5 . 2 . 3 1 4 7 . 1 4 18 . 6 Terminals 37 | . 5 . 2 . . 1 3 3 . 1 2 17 . 3 Fabricators 4 | . . . . . . . . 2 . . . . . 2 Repair Stations 1 | . . . . . . . . . . . 1 . . . Recycling Units 3 | . . . . . . . 1 . . . . 1 . 1 Scanalyzers 1 | . . . . . . . . 1 . . . . . . Garrison Access 2 | . . . . . . . . 1 . . 1 . . . Total Hacks 107 | . 14 . 5 . 3 2 9 13 . 1 7 41 . 12 Successful 55 | . 5 . 2 . 3 . 2 7 . . 5 24 . 7 Failed 52 | . 9 . 3 . . 2 7 6 . 1 2 17 . 5 Catastrophic 12 | . 2 . 1 . . 1 1 1 . 1 1 2 . 2 Database Lockouts . | . . . . . . . . . . . . . . . Manual 34 | . 11 . 4 . 1 2 6 5 . . 1 2 1 1 Terminals 84 | . 14 . 5 . . 2 7 5 . 1 5 40 . 5 Fabricators 9 | . . . . . . . . 3 . . . . . 6 Repair Stations 1 | . . . . . . . . . . . 1 . . . Recycling Units 4 | . . . . . . . 2 . . . . 1 . 1 Scanalyzers 4 | . . . . . . . . 4 . . . . . . Garrison Access 2 | . . . . . . . . 1 . . 1 . . . Terminal Hacks 37 | . 4 . 1 . 3 . 2 . . . 3 23 . 1 Record 6 | . . . . . 2 . . . . . . 4 . . Part Schematic 1 | . . . . . . . . . . . . 1 . . Prototype ID Bank 1 | . . . . . . . . . . . . 1 . . Open Door 8 | . . . . . . . . . . . . 8 . . Level Access Points 2 | . . . . . . . 1 . . . . 1 . . Branch Access Points 2 | . 1 . . . . . . . . . . 1 . . Emergency Access Points 1 | . . . . . . . . . . . 1 . . . Locate Traps 2 | . . . . . . . . . . . 1 1 . . Hauler Manifests 1 | . . . . . . . . . . . . 1 . . Registered Components 4 | . 1 . 1 . . . . . . . 1 1 . . Registered Prototypes 1 | . . . . . . . . . . . . 1 . . Zone Layout 7 | . 2 . . . . . 1 . . . . 3 . 1 Proto ID Catalog 1 | . . . . . 1 . . . . . . . . . Fabricator Hacks 8 | . . . . . . . . 3 . . . . . 5 Network Status 2 | . . . . . . . . 1 . . . . . 1 Load Schematic 3 | . . . . . . . . 1 . . . . . 2 Build 3 | . . . . . . . . 1 . . . . . 2 Repair Station Hacks 1 | . . . . . . . . . . . 1 . . . Refit 1 | . . . . . . . . . . . 1 . . . Recycling Unit Hacks 2 | . . . . . . . . . . . . 1 . 1 Report Inventory 2 | . . . . . . . . . . . . 1 . 1 Scanalyzer 2 | . . . . . . . . 2 . . . . . . Insert Component 1 | . . . . . . . . 1 . . . . . . Analyze 1 | . . . . . . . . 1 . . . . . . Garrison Access Hacks 2 | . . . . . . . . 1 . . 1 . . . Seal Access 2 | . . . . . . . . 1 . . 1 . . . Unauthorized Hacks 3 | . 1 . 1 . . . . 1 . . . . . . Terminals 3 | . 1 . 1 . . . . 1 . . . . . . Botnet 3 | . 1 . 1 . . . . 1 . . . . . . Fabricators . | . . . . . . . . . . . . . . . Repair Stations . | . . . . . . . . . . . . . . . Recycling Units . | . . . . . . . . . . . . . . . Scanalyzers . | . . . . . . . . . . . . . . . Garrison Access . | . . . . . . . . . . . . . . . Data Cores Recovered 3 | . . . 1 . . . 2 . . . . . . . Used . | . . . . . . . . . . . . . . . Hacking Detections 34 | . 4 . 2 . . 1 4 6 . 1 2 9 . 5 Full Trace Events 4 | . 1 . . . . . . 2 . . . . . 1 Feedback Events . | . . . . . . . . . . . . . . . Feedback Blocked . | . . . . . . . . . . . . . . . Robot Schematics Acquired . | . . . . . . . . . . . . . . . Robots Built . | . . . . . . . . . . . . . . . Authchips . | . . . . . . . . . . . . . . . Time . | . . . . . . . . . . . . . . . Total Robot Build Rating . | . . . . . . . . . . . . . . . Part Schematics Acquired 2 | . . . . . . . . 1 . . . 1 . . Parts Built 4 | . . . . . . . . . . . . . . 4 Authchips . | . . . . . . . . . . . . . . . Time 181 | . . . . . . . . 84 . . . . . 97 Total Part Build Rating 26 | . . . . . . . . . . . . . . 26 Parts Repaired . | . . . . . . . . . . . . . . . Time . | . . . . . . . . . . . . . . . Parts Recycled . | . . . . . . . . . . . . . . . Recycled Matter . | . . . . . . . . . . . . . . . Retrieved Matter . | . . . . . . . . . . . . . . . Retrieved Components . | . . . . . . . . . . . . . . . Parts Scanalyzed 1 | . . . . . . . . 1 . . . . . . Part Schematics Acquired 1 | . . . . . . . . 1 . . . . . . Parts Damaged . | . . . . . . . . . . . . . . . Bothacking | -11 -10 -10 -9 -9 -9 -8 -8 -7 -7 -7 -6 -6 -6 -5 ------------ Run | Yrd Mat Min Mat Min Exi Min Mat Fac Was Fac Fac Ext Cet Fac Used RIF Installer . | . . . . . . . . . . . . . . . Robots Hacked . | . . . . . . . . . . . . . . . Non-combat . | . . . . . . . . . . . . . . . Combat . | . . . . . . . . . . . . . . . Robot Hacks Applied . | . . . . . . . . . . . . . . . Relay Couplers Released 2 | . . . . . . . . 2 . . . . . . Machine Destruction 2 | . . . . . . . . 2 . . . . . . Fabnet Peak Effective % . | . . . . . . . . . . . . . . . Robots Rewired . | . . . . . . . . . . . . . . . Allies Hacked 1 | . . . . . . . . . . . . . . 1 Hacks Repelled . | . . . . . . . . . . . . . . . Allies | -11 -10 -10 -9 -9 -9 -8 -8 -7 -7 -7 -6 -6 -6 -5 -------- Run | Yrd Mat Min Mat Min Exi Min Mat Fac Was Fac Fac Ext Cet Fac Total Allies 20 | . . . . . . . . . . . . 15 5 . Largest Group 10 | . . . . . . . . . . . . 10 10 10 Highest-Rated Group 722 | . . . . . . . . . . . . 292 722 722 Highest-Rated Ally 159 | . . . . . . . . . . . . 159 159 127 Total Orders . | . . . . . . . . . . . . . . . Ally Attacks 274 | . . . . . . . . . . . . 142 44 88 Total Damage 7569 | . . . . . . . . . . . . 2699 1620 3250 Kills 55 | . . . . . . . . . . . . 18 9 28 Allies Corrupted . | . . . . . . . . . . . . . . . Allies Melted . | . . . . . . . . . . . . . . . Intel | -11 -10 -10 -9 -9 -9 -8 -8 -7 -7 -7 -6 -6 -6 -5 ------- Run | Yrd Mat Min Mat Min Exi Min Mat Fac Was Fac Fac Ext Cet Fac Active Infowar (turns) 4831 | 2 648 229 461 231 497 203 959 1526 63 12 . . . . Optics 1677 | . . . . . . . 959 718 . . . . . . Seismic 2271 | 2 648 229 461 231 497 203 . . . . . . . . Jamming 12 | . . . . . . . . . . 12 . . . . ECM 871 | . . . . . . . . 808 63 . . . . . Robot Analysis Total . | . . . . . . . . . . . . . . . Derelict Logs Recovered 3 | . . 2 . 1 . . . . . . . . . . Drone Launches . | . . . . . . . . . . . . . . . Drone Recoveries . | . . . . . . . . . . . . . . . Exploration | -11 -10 -10 -9 -9 -9 -8 -8 -7 -7 -7 -6 -6 -6 -5 ------------- Run | Yrd Mat Min Mat Min Exi Min Mat Fac Was Fac Fac Ext Cet Fac Turns Passed 10545 | 237 648 229 461 231 497 503 1198 2329 111 375 935 1094 290 1407 Spaces Moved 5303 | 102 344 123 213 143 308 367 569 1054 103 250 515 683 127 402 Core 12 | 8 . . . . . . 2 . . 1 . . . 1 Treads 1759 | 94 344 123 213 143 308 122 . . . . . 2 20 390 Legs 2294 | . . . . . . . 290 504 . 188 515 681 107 9 Wheels 1238 | . . . . . . 245 277 550 103 61 . . . 2 Hover . | . . . . . . . . . . . . . . . Flight . | . . . . . . . . . . . . . . . Fastest Speed 50 | 50 160 160 160 160 160 115 115 115 100 100 120 120 123 235 Average Speed 151 | 151 160 160 160 160 160 129 128 165 107 122 127 122 137 256 Slowest Speed 3100 | 160 160 160 160 160 160 160 950 200 115 150 190 240 235 3100 Overloaded Moves . | . . . . . . . . . . . . . . . Propulsion Burnouts . | . . . . . . . . . . . . . . . Robots Hopped . | . . . . . . . . . . . . . . . Potential Cave-ins 2 | . . . . . . . . 2 . . . . . . Cave-ins Triggered . | . . . . . . . . . . . . . . . Exploration Rate (%) 44 | 8 65 38 27 38 69 69 41 39 86 9 17 76 64 14 Regions Visited 14 Branch Regions 6 Pre-discovered Areas 3 | . . 1 . 1 1 . . . . . . . . . Known Exits Taken 5 | . 1 . . . . 1 1 . . . . 1 1 . Unknown Exits Taken 7 | 1 . 1 1 1 1 . . . . 1 1 . . . Scrap Searched 3 | . . 1 . 1 . 1 . . . . . . . . Spaces Dug . | . . . . . . . . . . . . . . . Terrain Destroyed 296 | 6 20 . . . . . 6 136 . . . . 1 127 Melee . | . . . . . . . . . . . . . . . Projectile 11 | . . . . . . . . . . . . . 1 10 AOE 285 | 6 20 . . . . . 6 136 . . . . . 117 Terrain Rammed . | . . . . . . . . . . . . . . . Walls Destroyed . | . . . . . . . . . . . . . . . Machines Disabled . | . . . . . . . . . . . . . . . Actions | -11 -10 -10 -9 -9 -9 -8 -8 -7 -7 -7 -6 -6 -6 -5 --------- Run | Yrd Mat Min Mat Min Exi Min Mat Fac Was Fac Fac Ext Cet Fac Total 7139 | 144 401 142 280 146 313 386 943 1429 103 317 771 867 214 683 Wait 1014 | . 18 . 22 . . 11 254 151 . 45 210 101 50 152 Move 5290 | 101 343 122 212 142 307 366 568 1054 102 249 514 682 126 402 Hop . | . . . . . . . . . . . . . . . Pick Up 139 | 11 10 4 3 2 3 2 27 28 1 6 5 6 9 22 Fast Attach 29 | . . . 3 . . . 2 2 . 5 7 7 3 . Attach 84 | 8 1 1 3 1 1 2 12 20 . 4 5 1 1 24 Detach 7 | . . . . . . . 2 1 . 1 . . . 3 Swap 48 | . 2 1 1 . . 1 5 25 . 2 . 5 3 3 Drop 74 | 1 4 5 1 1 2 . 12 18 . 5 5 11 6 3 Fire 420 | 23 23 9 35 . . 4 61 120 . . 10 46 16 73 Melee . | . . . . . . . . . . . . . . . Ram . | . . . . . . . . . . . . . . . Kick 15 | . . . . . . . . . . . 15 . . . Crush 1 | . . . . . . . . . . . . . . 1 Escape Stasis 8 | . . . . . . . . . . . . 8 . . Rewire 5 | . . . . . . . . 5 . . . . . . Trap 5 | . . . . . . . . 5 . . . . . . Miscellaneous . | . . . . . . . . . . . . . . . Route ------- -11/Scrapyard -10/Materials (discovered 2 exits: *Mat / *Min) -10/Mines -9/Materials (discovered 2 exits: Mat / [*Min]) -9/Mines -9/Exiles -8/Mines -8/Materials (discovered 3 exits: *Fac x3) -7/Factory (discovered 2 exits: *Fac / [*Sto]) -7/Waste -7/Factory -6/Factory -6/Extension (discovered 3 exits: *Fac x2 / *Cet) -6/Cetus (discovered 2 exits: *Fac / [*Arc]) -5/Factory History --------- Turn | Location | Event 6 | -11/Scrapyard | Discovered new exit (range 16) 238 | -11/Scrapyard | Entered Materials 307 | -10/Materials | Build established: Mutant 475 | -10/Materials | Discovered new exit (range 15) 526 | -10/Materials | Identified exit to Mines 886 | -10/Materials | Entered Mines 920 | -10/Mines | Met a Derelict bent on vengeance 1073 | -10/Mines | Learned location of 1 exit from Materials 1090 | -10/Mines | Discovered new exit (range 8) 1115 | -10/Mines | Entered Materials 1115 | -9/Materials | Evolved 2 slots: Propulsion x1, Utility x1 1116 | -9/Materials | Identified exit to Materials 1494 | -9/Materials | Discovered new exit (range 6) 1497 | -9/Materials | Lost 3 parts (1n1u1w) 1576 | -9/Materials | Entered Mines 1727 | -9/Mines | Build established: Scavenger-Mutant 1801 | -9/Mines | Deemed a non-threat by the Exiles lab entrance 1801 | -9/Mines | Discovered new exit (range 5) 1807 | -9/Mines | Entered Exiles 1852 | -9/Exiles | Met 8R-AWN 1878 | -9/Exiles | Met EX-HEX 1960 | -9/Exiles | Met EX-DEC 1987 | -9/Exiles | Learned location of Zion (-6) 2016 | -9/Exiles | Met EX-BIN 2039 | -9/Exiles | Aligned with FarCom system 2040 | -9/Exiles | Given EX-Vault access code 2077 | -9/Exiles | Opened EX-Vault 2090 | -9/Exiles | Found PSU Rigger 2123 | -9/Exiles | Warned to stay clear of 0b10 Research branches 2289 | -9/Exiles | Discovered new exit (range 10) 2304 | -9/Exiles | Left Exiles lab with PSU Rigger 2304 | -9/Exiles | Entered Mines 2796 | -8/Mines | Discovered exit to Materials (range 6) 2806 | -8/Mines | Build established: Mutant 2807 | -8/Mines | Entered Materials 2807 | -8/Materials | Evolved 2 slots: Propulsion x1, Utility x1 3242 | -8/Materials | Lost 4 parts (2n2w) 3309 | -8/Materials | Identified exit to Factory 3431 | -8/Materials | Found Powered Armor 3433 | -8/Materials | Found Powered Armor 3435 | -8/Materials | Found Powered Armor 3438 | -8/Materials | Found Powered Armor 3531 | -8/Materials | Build established: Scavenger-Mutant 3935 | -8/Materials | Build established: Mutant 4005 | -8/Materials | Entered Factory 4005 | -7/Factory | Evolved 2 slots: Power x1, Utility x1 4444 | -7/Factory | Garrison activated, responded to threat 4499 | -7/Factory | Destroyed 7 combat bots 4752 | -7/Factory | Destroyed 8 combat bots 4757 | -7/Factory | Lost 4 parts (1n3u) 5024 | -7/Factory | System corruption reached 10% 5495 | -7/Factory | Lost 3 parts (2u1w) 5498 | -7/Factory | Discovered new exit (range 11) 6089 | -7/Factory | Build established: Hacker-Mutant 6293 | -7/Factory | Discovered new exit (range 10) 6315 | -7/Factory | Core integrity fell below 50% 6334 | -7/Factory | Sucked down chute 6334 | -7/Factory | Entered Waste 6348 | -7/Waste | Found Prototype Hackware 6349 | -7/Waste | EMP discharged 6376 | -7/Waste | Spotted C-40 Crusher 6382 | -7/Waste | Spotted C-40 Crusher 6384 | -7/Waste | Spotted C-40 Crusher 6385 | -7/Waste | Spotted C-40 Crusher 6392 | -7/Waste | Crushed by Compactor (1 part destroyed, 1 dropped) 6394 | -7/Waste | Crushed by Compactor (1 part destroyed) 6397 | -7/Waste | Crushed by Compactor (1 part destroyed, 1 dropped) 6398 | -7/Waste | Crushed by Compactor (0 parts destroyed, 1 dropped) 6405 | -7/Waste | Spotted C-40 Crusher 6406 | -7/Waste | Crushed by Compactor (0 parts destroyed, 1 dropped) 6414 | -7/Waste | Spotted C-40 Crusher 6430 | -7/Waste | Discovered new exit (range 15) 6445 | -7/Waste | Entered Factory 6446 | -7/Factory | Lost 4 parts (1p1n2w) 6446 | -7/Factory | Identified Exp. Hacking Suite 6660 | -7/Factory | Found Prototype Launcher 6660 | -7/Factory | Identified Rocket Array 6771 | -7/Factory | Discovered new exit (range 13) 6820 | -7/Factory | Entered another Factory area 6820 | -6/Factory | Evolved 2 slots: Propulsion x2 7426 | -6/Factory | Lost 3 parts (1u2w) 7737 | -6/Factory | Discovered new exit (range 15) 7755 | -6/Factory | Entered Extension 7823 | -6/Extension | Rescued a captive Derelict 7825 | -6/Extension | Rescued a captive Derelict 7866 | -6/Extension | Rescued a captive Derelict 7867 | -6/Extension | Rescued a captive Derelict 7908 | -6/Extension | Rescued a captive Derelict 7908 | -6/Extension | Rescued a captive Derelict 8016 | -6/Extension | Rescued a captive Derelict 8017 | -6/Extension | Rescued a captive Derelict 8038 | -6/Extension | Rescued a captive Derelict 8039 | -6/Extension | Rescued a captive Derelict 8066 | -6/Extension | Spotted B-75 Beast 8131 | -6/Extension | Spotted B-75 Beast 8131 | -6/Extension | Allies destroyed B-75 Beast 8156 | -6/Extension | Destroyed B-75 Beast 8181 | -6/Extension | Lost 5 allies 8230 | -6/Extension | Rescued a captive Derelict 8232 | -6/Extension | Rescued a captive Derelict 8275 | -6/Extension | Identified exit to Cetus 8277 | -6/Extension | Identified exit to Factory 8386 | -6/Extension | Lost 4 allies 8421 | -6/Extension | Rescued a captive Derelict 8423 | -6/Extension | Rescued a captive Derelict 8697 | -6/Extension | Rescued A7 8849 | -6/Extension | Entered Cetus 8849 | -6/Cetus | Accompanied by 5 allies (A7) 8854 | -6/Cetus | Acquired a Cetus Manufacturing Module code from A7 8865 | -6/Cetus | Spotted Cetus Guard 8865 | -6/Cetus | Spotted Cetus Guard 8868 | -6/Cetus | Spotted Cetus Guard 8868 | -6/Cetus | Spotted Cetus Guard 8874 | -6/Cetus | Allies destroyed Cetus Guard 8877 | -6/Cetus | Allies destroyed Cetus Guard 8881 | -6/Cetus | Destroyed Cetus Guard 8890 | -6/Cetus | Allies destroyed Cetus Guard 8949 | -6/Cetus | Started Cetus Manufacturing Module 8965 | -6/Cetus | Discovered new exit (range 15) 8974 | -6/Cetus | Manufactured an Enhanced Grunt 8988 | -6/Cetus | Spotted Cetus Guard 8988 | -6/Cetus | Spotted Cetus Guard 8989 | -6/Cetus | Spotted Cetus Guard 8990 | -6/Cetus | Spotted Cetus Guard 8999 | -6/Cetus | Manufactured an Enhanced Grunt 9000 | -6/Cetus | Allies destroyed Cetus Guard 9000 | -6/Cetus | Allies destroyed Cetus Guard 9014 | -6/Cetus | Allies destroyed Cetus Guard 9020 | -6/Cetus | Allies destroyed Cetus Guard 9023 | -6/Cetus | Discovered exit to Factory (range 15) 9024 | -6/Cetus | Manufactured an Enhanced Grunt 9029 | -6/Cetus | Met Revision 17 9044 | -6/Cetus | Lost 3 parts (1p2n) 9049 | -6/Cetus | Manufactured an Enhanced Grunt 9074 | -6/Cetus | Manufactured an Enhanced Grunt 9092 | -6/Cetus | System corruption reached 10% 9139 | -6/Cetus | Entered Factory 9139 | -5/Factory | Accompanied by 10 allies (A7) 9139 | -5/Factory | Evolved 2 slots: Utility x2 9410 | -5/Factory | Fabricated Enh. Quantum Rifle (x2) 9451 | -5/Factory | Build established: Scavenger-Mutant 9909 | -5/Factory | Fabricated Powered Armor (x2) 9951 | -5/Factory | Lost 5 allies 10232 | -5/Factory | Destroyed 7 combat bots 10250 | -5/Factory | Lost 3 allies 10328 | -5/Factory | Lost 11 parts (1p5n3u2w) 10339 | -5/Factory | First assault squad dispatched 10409 | -5/Factory | Lost 6 parts (1p3u2w) 10471 | -5/Factory | Core integrity fell below 50% 10529 | -5/Factory | Core integrity fell below 20% 10546 | -5/Factory | Destroyed by G-50 Soldier with Heavy Laser Last Messages --------------- 10517_ Adv. Variable Charge Gun destroyed. 10518_ M-28 Smith repairs G-67 Veteran. 10525_ M-28 Smith destroyed. 10526_ K-01 Serf collects debris. 10526_ Critical hit (Burn: +37). 10527_ K-01 Serf collects debris. 10528_ U-05 Engineer lays Concrete. 10530_ K-01 Serf collects debris. 10530_ Enh. Quantum Rifle destroyed. 10530_ K-01 Serf collects debris. 10532_ Critical hit (Burn: +37). 10533_ K-01 Serf collects debris. 10536_ Flak Gun destroyed. 10538_ R-10 Processor collects Imp. Recalibrator. 10540_ Imp. Heat Sink destroyed. 10541_ Critical hit (Burn: +37). 10542_ K-01 Serf collects debris. 10545_ System corrupted: Component data lost. 10546_ K-01 Serf collects debris. Map ----- +----------------------------------------------------+ | ?????????????????????????????????????????????????? | | ?????????????????????????????????????????????????? | | ?????????????????????????????????????????????????? | | ?????????????????????????????????????????????????? | | ?????????????????????????????????????????????????? | | ?????????????????????????????????????????????????? | | ?????????????????????????????????????????????????? | | ?????????????????????????????????????????????????? | | ?????????????????????????????????????????????????? | | ?????????????????????????????????????????????????? | | ?????????? ????????????????????????????????????? | | ?????????? ????????????????????????????????????? | | ?????????? ????????????????????????????????????? | | ?????????# ???????##??????##???????????????????? | | ?????????# ??????? ??? ##??????????????????? | | ?????????# ???????? ?? ??????????????????? | | ?????????# ? ????? ?? ???????????????????? | | ?????????# "" ?"? ?" "" ???????????????????? | | ?????????# "" "" "" ""R #???????????????????? | | ?????????# """ """ """ """ #???????????????????? | | ########## """ "" """ """ ##??????????????????? | | """ # """ """R"" " " ##??????????????????? | | "Y" !! # ^ g ##??????????????????? | | !! # "" "" " ###?????????????????? | | """ !! + "" "" ""A i # ########??????????? | | """ # """ """ " @ # #??????????? | | """ # """ """ " %g # #??????????? | | ! # """ """ "" gR # #??????????? | | # g # #??????????? | | ########## k # !!!#??????????? | | # !!!#??????????? | | R # !!!#??????????? | | ! # #??????????? | | ! """""" """"""" # !#??????????? | | % """""" """"""" "" ###+############????? | | """"""" """"""" k ??? | | """""" """""" % ######???????? | | # #??????####? | | % # ##?????! ? | | % # #?? ? | | ### % ##################/#### ?? | | #?# %## #?###???# ! "" ""?? | | #?#! """ """ ]" #????????? % == ""G""?? | | #?# """ """ % "#########?# [ ####? | | ### """ """ " =% #? | | # " %""########### = % * #? | | #?# ##??????? # [%[ =%=#= #? | | ### ###/ #??????# * % ! !! #? | | ### # % #???# =%% *% ! ! #? | | # " #???# # =* ]! #? | +----------------------------------------------------+ Best States ------------- Heat Dissipation 54 Coolant Potential 65 Energy Generation 36 Energy Capacity 540 Matter Stores 300 Matter Capacity 300 Sight Range 18 Terrain Scan Density 10 ECM Strength 2 Jamming Range 12 Armor Coverage 1200 Resistance: TH 15 Evasion (%) 55 Core Analysis 6 Recoil Reduction 5 Offensive Hacking 26 Defensive Hacking 12 Item Schematics ----------------- Powered Armor | -7/Factory | Scanalyzed Adv. Coolant Injector | -6/Extension | Hacked Robot Schematics ------------------ None Fabricated ------------ Enh. Quantum Rifle | x2 | -5/Factory | Preloaded Powered Armor | x2 | -5/Factory Repaired ---------- Nothing Alien Tech Used ----------------- None Achievements -------------- Prison Break Project G-00 Challenges ------------ None Game ------ Seed DataStructuralCompanion Manual? 0 Play Time 01:46:04 Cumulative 113.0 hours Start 2025.08.07 @ 22:01:18 End 2025.08.08 @ 00:13:22 Sessions 1 Manual Loads 0 Difficulty Rogue Special Mode None Game No. 198 Rogue 198 Adventurer 0 Explorer 0 Win Type - Total 1 Types 1/0/0/0/0/0/0/0/0/0 Lore% 68 Gallery% 63 Achievement% 44 Wizard Run 0 Options --------- Layout 1 ASCII 0 Keyboard 0 Movement Mouse Keybinds 0 Fullscreen 1 Font 24/Smallcaps Map View 50x35 Zoom Use 0% Tactical HUD 1 Map Filters NONE Filters NONE Steam 1 RUN: 815b2e19-e7d4-4972-9661-bd65e5a3bffb